Workbook

Sheet Consumo
A1: Paciente | B1: Fecha | C1: Mes | D1: Procedimientos | E1: COD | F1: Materiales médicos | G1: Cantidad | H1: UM | I1: Costo | J1: Total
A2: Ramirez Estrada Jorge | B2: 2011-01-04 | C2: =IF(MONTH(B2)=1,"ENERO",IF(MONTH(B2)=2,"FEBRERO","MARZO")) -> ENERO | D2: 1 | E2: 020100081 | F2: Aguja descartable Nº 18 X 1 1/2 | G2: 2 | H2: Und. | I2: 0.06 | J2: =+G2*I2 -> 0.12
A3: Ramirez Estrada Jorge | B3: 2011-01-04 | C3: =IF(MONTH(B3)=1,"ENERO",IF(MONTH(B3)=2,"FEBRERO","MARZO")) -> ENERO | D3: 1 | E3: 020100095 | F3: Aguja descartable Nº 22 x 1 1/2 | G3: 2 | H3: Und. | I3: 0.05 | J3: =+G3*I3 -> 0.1
A4: Ramirez Estrada Jorge | B4: 2011-01-04 | C4: ENERO | D4: 1 | E4: 020100133 | F4: Algodón hidrofilo 500 gr. | G4: 2 | H4: TOR | I4: 0.0756 | J4: 0.1512
A5: Ramirez Estrada Jorge | B5: 2011-01-04 | C5: ENERO | D5: 1 | E5: 020100185 | F5: Bolsa colectora de Orina adulto descartable | G5: 1 | H5: Und. | I5: 3.13 | J5: 3.13
A6: Ramirez Estrada Jorge | B6: 2011-01-04 | C6: ENERO | D6: 1 | E6: 020100242 | F6: Canula binasal adulto (bigote de gato) | G6: 1 | H6: Und. | I6: 1.85 | J6: 1.85
A7: Ramirez Estrada Jorge | B7: 2011-01-04 | C7: ENERO | D7: 1 | E7: 020100439 | F7: Cateter endovenoso periferico Nº 18 x 1 1/2 | G7: 1 | H7: Und. | I7: 1.08 | J7: 1.08
A8: Ramirez Estrada Jorge | B8: 2011-01-04 | C8: ENERO | D8: 1 | E8: 020100787 | F8: Colector urinario masculino adulto talla L | G8: 1 | H8: Und. | I8: 3.51 | J8: 3.51
A9: Ramirez Estrada Jorge | B9: 2011-01-04 | C9: ENERO | D9: 1 | E9: 020100847 | F9: Cubre calzado descartable (par) | G9: 10 | H9: Und. | I9: 0.47 | J9: 4.7
A10: Ramirez Estrada Jorge | B10: 2011-01-04 | C10: ENERO | D10: 1 | E10: 020100851 | F10: Desposito para descartable agujas | G10: 1 | H10: Und. | I10: 6.62 | J10: 6.62
A11: Ramirez Estrada Jorge | B11: 2011-02-24 | C11: FEBRERO | D11: 1 | E11: 020100851 | F11: Recipiente de carton para residuos punzo cortantes | G11: 1 | H11: Und. | I11: 6.62 | J11: 6.62
A12: Ramirez Estrada Jorge | B12: 2011-02-24 | C12: FEBRERO | D12: 1 | E12: 020100986 | F12: Equipo de extensión cateter venoso Nº 60 | G12: 1 | H12: Und. | I12: 0.67 | J12: 0.67
A13: Ramirez Estrada Jorge | B13: 2011-02-24 | C13: FEBRERO | D13: 1 | E13: 020100998 | F13: Equipo de venoclisis | G13: 4 | H13: Und. | I13: 0.9 | J13: 3.6
A14: Ramirez Estrada Jorge | B14: 2011-02-24 | C14: FEBRERO | D14: 1 | E14: 020101079 | F14: Gorro para enfermera descartable | G14: 8 | H14: Und. | I14: 0.13 | J14: 1.04
A15: Ramirez Estrada Jorge | B15: 2011-02-24 | C15: FEBRERO | D15: 1 | E15: 020101084 | F15: Guante medico para simple uso Nº 7 | G15: 6 | H15: Und. | I15: 0.2 | J15: 1.2
A16: Ramirez Estrada Jorge | B16: 2011-02-24 | C16: FEBRERO | D16: 1 | E16: 020101085 | F16: Guante medico para simple uso Nº 7 1/2 | G16: 4 | H16: Und. | I16: 0.2 | J16: 0.8
A17: Ramirez Estrada Jorge | B17: 2011-02-24 | C17: FEBRERO | D17: 1 | E17: 020101088 | F17: Guante quirúrgico esteril Nº 6 1/2 | G17: 2 | H17: Und. | I17: 0.61 | J17: 1.22
A18: Ramirez Estrada Jorge | B18: 2011-02-24 | C18: FEBRERO | D18: 1 | E18: 020101089 | F18: Guante quirúrgico esteril Nº 7 | G18: 2 | H18: Und. | I18: 0.71 | J18: 1.42
A19: Ramirez Estrada Jorge | B19: 2011-02-24 | C19: FEBRERO | D19: 1 | E19: 020101090 | F19: Guante quirúrgico esteril Nº 7 1/2 | G19: 2 | H19: Und. | I19: 0.71 | J19: 1.42
A20: Ramirez Estrada Jorge | B20: 2011-02-24 | C20: FEBRERO | D20: 1 | E20: 020101258 | F20: Jeringa descartable 10 cc. Sin aguja | G20: 2 | H20: Und. | I20: 0.24 | J20: 0.48
A21: Ramirez Estrada Jorge | B21: 2011-02-24 | C21: FEBRERO | D21: 1 | E21: 020101267 | F21: Jeringa descartable 3 cc. Sin aguja | G21: 2 | H21: Und. | I21: 0.15 | J21: 0.3
A22: Ramirez Estrada Jorge | B22: 2011-02-24 | C22: FEBRERO | D22: 1 | E22: 020101269 | F22: Jeringa descartable 5 cc. Sin aguja | G22: 2 | H22: Und. | I22: 0.13 | J22: 0.26
A23: Ramirez Estrada Jorge | B23: 2011-02-24 | C23: FEBRERO | D23: 1 | E23: 020101273 | F23: Jeringa descartable para insulina 1 cc. | G23: 2 | H23: Und. | I23: 0.15 | J23: 0.3
A24: Ramirez Estrada Jorge | B24: 2011-02-24 | C24: FEBRERO | D24: 1 | E24: 020101305 | F24: Llave de triple vía descartable | G24: 2 | H24: Und. | I24: 0.58 | J24: 1.16
A25: Ramirez Estrada Jorge | B25: 2011-03-18 | C25: MARZO | D25: 1 | E25: 020101318 | F25: Mandil esteril descartable | G25: 3 | H25: Und. | I25: 6 | J25: 18
A26: Ramirez Estrada Jorge | B26: 2011-03-18 | C26: MARZO | D26: 1 | E26: 020101453 | F26: Pañal descartable | G26: 1 | H26: Und. | I26: 1.93 | J26: 1.93
A27: Ramirez Estrada Jorge | B27: 2011-03-18 | C27: MARZO | D27: 1 | E27: 020102494 | F27: Gasa grande 10 x 10 | G27: 4 | H27: Und. | I27: 0.45 | J27: 1.8
A28: Ramirez Estrada Jorge | B28: 2011-03-18 | C28: MARZO | D28: 1 | E28: 020102536 | F28: Esparadrado hipoalergenico (plastificado) 2 x 10" yardas | G28: 6 | H28: mt | I28: 0.3494505495 | J28: 2.096703297
A29: Ramirez Estrada Jorge | B29: 2011-03-18 | C29: MARZO | D29: 1 | E29: 020102541 | F29: Esparadrado hipoalergenico de papel microporoso 2 " x 10 yardas | G29: 0.5 | H29: mt | I29: 0.3472527473 | J29: 0.1736263736
A30: Ramirez Estrada Jorge | B30: 2011-03-18 | C30: MARZO | D30: 1 | E30: 020102544 | F30: Esparadrado hipoalergenico (tela) 2 x 10" yardas | G30: 3 | H30: mt | I30: 0.6 | J30: 1.8
A31: Ramirez Estrada Jorge | B31: 2011-03-25 | C31: MARZO | D31: 1 | E31: 020102545 | F31: Esparadrado hipoalergenico (tela) 3x 10" yardas | G31: 50 | H31: mt | I31: 1.098901099 | J31: 54.94505495
A32: Ramirez Estrada Jorge | B32: 2011-03-25 | C32: MARZO | D32: 1 | E32: 020102841 | F32: Jabón antiseptico yodopovidona 7% a 10% espuma | G32: 200 | H32: CM3 | I32: 0.03 | J32: 6
A33: Ramirez Estrada Jorge | B33: 2011-03-25 | C33: MARZO | D33: 1 | E33: 020103213 | F33: Alcohol con emoliente p. Antisepsia de mano | G33: 100 | H33: CM3 | I33: 0.009 | J33: 0.9
A34: Ramirez Estrada Jorge | B34: 2011-03-25 | C34: MARZO | D34: 1 | E34: 030200297 | F34: Alcohol yodado | G34: 50 | H34: CM3 | I34: 0.01 | J34: 0.5
A35: Ramirez Estrada Jorge | B35: 2011-03-25 | C35: MARZO | D35: 1 | E35: 170050032 | F35: Papel toalla | G35: 24 | H35: Und. | I35: 0.0149 | J35: 0.3576
A36: Ramirez Estrada Jorge | B36: 2011-03-25 | C36: MARZO | D36: 1 | E36: 050010086 | F36: Papel bond | G36: 10 | H36: Und. | I36: 0.02 | J36: 0.2
A37: Berneo Cruz Maria | B37: 2011-01-04 | C37: ENERO | D37: 4 | E37: 020100081 | F37: Aguja descartable Nº 18 X 1 1/2 | G37: 6 | H37: Und. | I37: 0.06 | J37: 0.36
A38: Berneo Cruz Maria | B38: 2011-01-04 | C38: ENERO | D38: 4 | E38: 020100095 | F38: Aguja descartable Nº 22 x 1 1/2 | G38: 2 | H38: Und. | I38: 0.05 | J38: 0.1
A39: Berneo Cruz Maria | B39: 2011-01-04 | C39: ENERO | D39: 4 | E39: 020100133 | F39: Algodón hidrofilo 500 gr. | G39: 2 | H39: TOR | I39: 0.0756 | J39: 0.1512
A40: Berneo Cruz Maria | B40: 2011-01-04 | C40: ENERO | D40: 4 | E40: 020100242 | F40: Canula binasal adulto (bigote de gato) | G40: 1 | H40: Und. | I40: 1.85 | J40: 1.85
A41: Berneo Cruz Maria | B41: 2011-01-04 | C41: ENERO | D41: 4 | E41: 020100847 | F41: Cubre calzado descartable (par) | G41: 14 | H41: Und. | I41: 0.47 | J41: 6.58
A42: Berneo Cruz Maria | B42: 2011-01-04 | C42: ENERO | D42: 4 | E42: 020100986 | F42: Equipo de extensión cateter venoso Nº 60 | G42: 1 | H42: Und. | I42: 0.67 | J42: 0.67
A43: Berneo Cruz Maria | B43: 2011-01-04 | C43: ENERO | D43: 4 | E43: 020100998 | F43: Equipo de venoclisis | G43: 4 | H43: Und. | I43: 0.9 | J43: 3.6
A44: Berneo Cruz Maria | B44: 2011-01-04 | C44: ENERO | D44: 4 | E44: 020101079 | F44: Gorro para enfermera descartable | G44: 8 | H44: Und. | I44: 0.13 | J44: 1.04
A45: Berneo Cruz Maria | B45: 2011-01-04 | C45: ENERO | D45: 4 | E45: 020101084 | F45: Guante medico para simple uso Nº 7 | G45: 6 | H45: Und. | I45: 0.2 | J45: 1.2
A46: Berneo Cruz Maria | B46: 2011-01-04 | C46: ENERO | D46: 4 | E46: 020101085 | F46: Guante medico para simple uso Nº 7 1/2 | G46: 4 | H46: Und. | I46: 0.2 | J46: 0.8
A47: Berneo Cruz Maria | B47: 2011-01-04 | C47: ENERO | D47: 4 | E47: 020101088 | F47: Guante quirúrgico esteril Nº 6 1/2 | G47: 2 | H47: Und. | I47: 0.61 | J47: 1.22
A48: Berneo Cruz Maria | B48: 2011-01-04 | C48: ENERO | D48: 4 | E48: 020101084 | F48: Guante medico para simple uso Nº 7 | G48: 4 | H48: Und. | I48: 0.2 | J48: 0.8
A49: Berneo Cruz Maria | B49: 2011-01-04 | C49: ENERO | D49: 4 | E49: 020101086 | F49: Guante medico para simple uso Nº 8 | G49: 4 | H49: Und. | I49: 0.21 | J49: 0.84
A50: Berneo Cruz Maria | B50: 2011-02-16 | C50: FEBRERO | D50: 4 | E50: 020101258 | F50: Jeringa descartable 10 cc. Sin aguja | G50: 3 | H50: Und. | I50: 0.24 | J50: 0.72
A51: Berneo Cruz Maria | B51: 2011-02-16 | C51: FEBRERO | D51: 4 | E51: 020101267 | F51: Jeringa descartable 3 cc. Sin aguja | G51: 4 | H51: Und. | I51: 0.15 | J51: 0.6
A52: Berneo Cruz Maria | B52: 2011-02-16 | C52: FEBRERO | D52: 4 | E52: 020101269 | F52: Jeringa descartable 5 cc. Sin aguja | G52: 4 | H52: Und. | I52: 0.13 | J52: 0.52
A53: Berneo Cruz Maria | B53: 2011-02-16 | C53: FEBRERO | D53: 4 | E53: 020101273 | F53: Jeringa descartable para insulina 1 cc. | G53: 6 | H53: Und. | I53: 0.15 | J53: 0.9
A54: Berneo Cruz Maria | B54: 2011-02-16 | C54: FEBRERO | D54: 4 | E54: 020101301 | F54: Llave de doble vía descartable | G54: 3 | H54: Und. | I54: 0.77 | J54: 2.31
A55: Berneo Cruz Maria | B55: 2011-02-16 | C55: FEBRERO | D55: 4 | E55: 020101318 | F55: Mandil esteril descartable | G55: 3 | H55: Und. | I55: 6 | J55: 18
A56: Berneo Cruz Maria | B56: 2011-02-16 | C56: FEBRERO | D56: 4 | E56: 020101453 | F56: Pañal descartable | G56: 1 | H56: Und. | I56: 1.93 | J56: 1.93
A57: Berneo Cruz Maria | B57: 2011-02-16 | C57: FEBRERO | D57: 4 | E57: 020102494 | F57: Gasa grande 10 x 10 | G57: 6 | H57: Und. | I57: 0.45 | J57: 2.7
A58: Berneo Cruz Maria | B58: 2011-02-16 | C58: FEBRERO | D58: 4 | E58: 020102536 | F58: Esparadrado hipoalergenico (plastificado) 2 x 10" yardas | G58: 6 | H58: mt | I58: 0.3494505495 | J58: 2.096703297
A59: Berneo Cruz Maria | B59: 2011-03-25 | C59: MARZO | D59: 4 | E59: 020102541 | F59: Esparadrado hipoalergenico de papel microporoso 2 " x 10 yardas | G59: 0.5 | H59: mt | I59: 0.3472527473 | J59: 0.1736263736
A60: Berneo Cruz Maria | B60: 2011-03-25 | C60: MARZO | D60: 4 | E60: 020102544 | F60: Esparadrado hipoalergenico (tela) 2 x 10" yardas | G60: 3 | H60: mt | I60: 0.6 | J60: 1.8
A61: Berneo Cruz Maria | B61: 2011-03-25 | C61: MARZO | D61: 4 | E61: 020102604 | F61: Solución de Iodoro (Yodo povidona) 9 -12% | G61: 50 | H61: Und. | I61: 0.01 | J61: 0.5
A62: Berneo Cruz Maria | B62: 2011-03-25 | C62: MARZO | D62: 4 | E62: 020102841 | F62: Jabón antiseptico yodopovidona 7% a 10% espuma | G62: 200 | H62: CM3 | I62: 0.03 | J62: 6
A63: Berneo Cruz Maria | B63: 2011-03-25 | C63: MARZO | D63: 4 | E63: 020103213 | F63: Alcohol con emoliente p. Antisepsia de mano | G63: 100 | H63: CM3 | I63: 0.009 | J63: 0.9
A64: Berneo Cruz Maria | B64: 2011-03-25 | C64: MARZO | D64: 4 | E64: 030200297 | F64: Alcohol yodado | G64: 50 | H64: CM3 | I64: 0.01 | J64: 0.5
A65: Berneo Cruz Maria | B65: 2011-03-25 | C65: MARZO | D65: 4 | E65: 170050032 | F65: Papel toalla | G65: 20 | H65: Und. | I65: 0.0149 | J65: 0.298
A66: Berneo Cruz Maria | B66: 2011-03-25 | C66: MARZO | D66: 4 | E66: 050010086 | F66: Papel bond | G66: 10 | H66: Und. | I66: 0.02 | J66: 0.2
A67: Peña Bernal Jessica | B67: 2011-01-04 | C67: =IF(MONTH(B67)=1,"ENERO",IF(MONTH(B67)=2,"FEBRERO","MARZO")) -> ENERO | D67: 3 | E67: 020100081 | F67: Aguja descartable Nº 18 X 1 1/2 | G67: 2 | H67: Und. | I67: 0.06 | J67: =+G67*I67 -> 0.12
A68: Peña Bernal Jessica | B68: 2011-01-04 | C68: ENERO | D68: 3 | E68: 020100095 | F68: Aguja descartable Nº 22 x 1 1/2 | G68: 2 | H68: Und. | I68: 0.05 | J68: 0.1
A69: Peña Bernal Jessica | B69: 2011-01-04 | C69: ENERO | D69: 3 | E69: 020100133 | F69: Algodón hidrofilo 500 gr. | G69: 2 | H69: TOR | I69: 0.0756 | J69: 0.1512
A70: Peña Bernal Jessica | B70: 2011-01-04 | C70: ENERO | D70: 3 | E70: 020100244 | F70: Canula binasal pediátrico (bigote de gato) | G70: 1 | H70: Und. | I70: 1.8 | J70: 1.8
A71: Peña Bernal Jessica | B71: 2011-01-04 | C71: ENERO | D71: 3 | E71: 020100439 | F71: Cateter endovenoso periferico Nº 18 x 1 1/2 | G71: 1 | H71: Und. | I71: 1.08 | J71: 1.08
A72: Peña Bernal Jessica | B72: 2011-01-04 | C72: ENERO | D72: 3 | E72: 020100847 | F72: Cubre calzado descartable (par) | G72: 16 | H72: Und. | I72: 0.47 | J72: 7.52
A73: Peña Bernal Jessica | B73: 2011-01-04 | C73: ENERO | D73: 3 | E73: 020100986 | F73: Equipo de extensión cateter venoso Nº 60 | G73: 1 | H73: Und. | I73: 0.67 | J73: 0.67
A74: Peña Bernal Jessica | B74: 2011-01-04 | C74: ENERO | D74: 3 | E74: 020100990 | F74: Equipo de microgotero con camara graduada | G74: 1 | H74: Und. | I74: 2.85 | J74: 2.85
A75: Peña Bernal Jessica | B75: 2011-01-04 | C75: ENERO | D75: 3 | E75: 020100998 | F75: Equipo de venoclisis | G75: 5 | H75: Und. | I75: 0.9 | J75: 4.5
A76: Peña Bernal Jessica | B76: 2011-01-04 | C76: ENERO | D76: 3 | E76: 020101079 | F76: Gorro para enfermera descartable | G76: 8 | H76: Und. | I76: 0.13 | J76: 1.04
A77: Peña Bernal Jessica | B77: 2011-01-04 | C77: ENERO | D77: 3 | E77: 020101089 | F77: Guante quirúrgico esteril Nº 7 | G77: 6 | H77: Und. | I77: 0.71 | J77: 4.26
A78: Peña Bernal Jessica | B78: 2011-01-04 | C78: ENERO | D78: 3 | E78: 020101090 | F78: Guante quirúrgico esteril Nº 7 1/2 | G78: 4 | H78: Und. | I78: 0.71 | J78: 2.84
A79: Peña Bernal Jessica | B79: 2011-01-04 | C79: ENERO | D79: 3 | E79: 020101089 | F79: Guante quirúrgico esteril Nº 7 | G79: 4 | H79: Und. | I79: 0.71 | J79: 2.84
A80: Peña Bernal Jessica | B80: 2011-01-04 | C80: ENERO | D80: 3 | E80: 020101090 | F80: Guante quirúrgico esteril Nº 7 1/2 | G80: 4 | H80: Und. | I80: 0.71 | J80: 2.84
A81: Peña Bernal Jessica | B81: 2011-01-04 | C81: ENERO | D81: 3 | E81: 020101149 | F81: Hoja de bisturi Nº 15 | G81: 1 | H81: Und. | I81: 0.16 | J81: 0.16
A82: Peña Bernal Jessica | B82: 2011-01-04 | C82: ENERO | D82: 3 | E82: 020101258 | F82: Jeringa descartable 10 cc. Sin aguja | G82: 3 | H82: Und. | I82: 0.24 | J82: 0.72
A83: Peña Bernal Jessica | B83: 2011-01-04 | C83: ENERO | D83: 3 | E83: 020101267 | F83: Jeringa descartable 3 cc. Sin aguja | G83: 2 | H83: Und. | I83: 0.15 | J83: 0.3
A84: Peña Bernal Jessica | B84: 2011-01-04 | C84: ENERO | D84: 3 | E84: 020101269 | F84: Jeringa descartable 5 cc. Sin aguja | G84: 2 | H84: Und. | I84: 0.13 | J84: 0.26
A85: Peña Bernal Jessica | B85: 2011-01-04 | C85: ENERO | D85: 3 | E85: 020101273 | F85: Jeringa descartable para insulina 1 cc. | G85: 2 | H85: Und. | I85: 0.15 | J85: 0.3
A86: Peña Bernal Jessica | B86: 2011-01-04 | C86: ENERO | D86: 3 | E86: 020101305 | F86: Llave de triple vía descartable | G86: 3 | H86: Und. | I86: 0.58 | J86: 1.74
A87: Peña Bernal Jessica | B87: 2011-01-04 | C87: ENERO | D87: 3 | E87: 020101318 | F87: Mandil esteril descartable | G87: 3 | H87: Und. | I87: 6 | J87: 18
A88: Peña Bernal Jessica | B88: 2011-02-02 | C88: FEBRERO | D88: 3 | E88: 020101368 | F88: Mascarilla aseptica descartable | G88: 10 | H88: Und. | I88: 0.17 | J88: 1.7
A89: Peña Bernal Jessica | B89: 2011-02-02 | C89: FEBRERO | D89: 3 | E89: 020101622 | F89: Sonda de aspiración endotraqueal Nº 14 (descartable) | G89: 1 | H89: Und. | I89: 0.8 | J89: 0.8
A90: Peña Bernal Jessica | B90: 2011-02-02 | C90: FEBRERO | D90: 3 | E90: 020101940. | F90: Sutura de seda negra trenzada Nº 2/0 c/a 1/2 cc 25 mm | G90: 1 | H90: Und. | I90: 2.06 | J90: 2.06
A91: Peña Bernal Jessica | B91: 2011-02-02 | C91: FEBRERO | D91: 3 | E91: 020102494 | F91: Gasa grande 10 x 10 | G91: 6 | H91: Und. | I91: 0.45 | J91: 2.7
A92: Peña Bernal Jessica | B92: 2011-02-02 | C92: FEBRERO | D92: 3 | E92: 020102536 | F92: Esparadrado hipoalergenico (plastificado) 2 x 10" yardas | G92: 6 | H92: mt | I92: 0.3494505495 | J92: 2.096703297
A93: Peña Bernal Jessica | B93: 2011-02-02 | C93: FEBRERO | D93: 3 | E93: 020102541 | F93: Esparadrado hipoalergenico de papel microporoso 2 " x 10 yardas | G93: 0.5 | H93: mt | I93: 0.3472527473 | J93: 0.1736263736
A94: Peña Bernal Jessica | B94: 2011-02-02 | C94: FEBRERO | D94: 3 | E94: 020102544 | F94: Esparadrado hipoalergenico (tela) 2 x 10" yardas | G94: 3 | H94: mt | I94: 0.6 | J94: 1.8
A95: Peña Bernal Jessica | B95: 2011-02-02 | C95: FEBRERO | D95: 3 | E95: 020102604 | F95: Solución de Iodoro (Yodo povidona) 9 -12% | G95: 50 | H95: Und. | I95: 0.01 | J95: 0.5
A96: Peña Bernal Jessica | B96: 2011-02-02 | C96: FEBRERO | D96: 3 | E96: 020102811 | F96: Detergente proteolitico enzimatico | G96: 220 | H96: CM3 | I96: 0.03 | J96: 6.6
A97: Peña Bernal Jessica | B97: 2011-02-02 | C97: FEBRERO | D97: 3 | E97: 020102841 | F97: Jabón antiseptico yodopovidona 7% a 10% espuma | G97: 200 | H97: CM3 | I97: 0.03 | J97: 6
A98: Peña Bernal Jessica | B98: 2011-02-02 | C98: FEBRERO | D98: 3 | E98: 020103065 | F98: Equipo de aspiración descartable x 1.5 lt. | G98: 1 | H98: Und. | I98: 15 | J98: 15
A99: Peña Bernal Jessica | B99: 2011-02-02 | C99: FEBRERO | D99: 3 | E99: 020103213 | F99: Alcohol con emoliente p. Antisepsia de mano | G99: 100 | H99: CM3 | I99: 0.009 | J99: 0.9
A100: Peña Bernal Jessica | B100: 2011-02-02 | C100: FEBRERO | D100: 3 | E100: 050010086 | F100: Papel bond | G100: 10 | H100: Und. | I100: 0.02 | J100: 0.2
A101: Peña Bernal Jessica | B101: 2011-02-02 | C101: FEBRERO | D101: 3 | E101: 020201870 | F101: Tubo de jebe anodex Nº 1/4 x 3 3/2 | G101: 1 | H101: Und. | I101: 67.87 | J101: 67.87
A102: Peña Bernal Jessica | B102: 2011-02-02 | C102: FEBRERO | D102: 3 | E102: 030200297 | F102: Alcohol yodado | G102: 50 | H102: CM3 | I102: 0.01 | J102: 0.5
A103: Peña Bernal Jessica | B103: 2011-02-02 | C103: FEBRERO | D103: 3 | E103: 170050032 | F103: Papel toalla | G103: 1 | H103: Und. | I103: 0.0149 | J103: 0.0149
A104: Ruiz Ramirez Inés | B104: 2011-01-05 | C104: ENERO | D104: 5 | E104: 020100081 | F104: Aguja descartable Nº 18 X 1 1/2 | G104: 4 | H104: Und. | I104: 0.06 | J104: 0.24
A105: Ruiz Ramirez Inés | B105: 2011-01-05 | C105: ENERO | D105: 5 | E105: 020100095 | F105: Aguja descartable Nº 22 x 1 1/2 | G105: 2 | H105: Und. | I105: 0.05 | J105: 0.1
A106: Ruiz Ramirez Inés | B106: 2011-01-05 | C106: ENERO | D106: 5 | E106: 020100133 | F106: Algodón hidrofilo 500 gr. | G106: 2 | H106: TOR | I106: 0.0756 | J106: 0.1512
A107: Ruiz Ramirez Inés | B107: 2011-01-05 | C107: ENERO | D107: 5 | E107: 020100242 | F107: Canula binasal adulto (bigote de gato) | G107: 1 | H107: Und. | I107: 1.85 | J107: 1.85
A108: Ruiz Ramirez Inés | B108: 2011-01-05 | C108: ENERO | D108: 5 | E108: 020100445 | F108: Cateter endovenoso periferico Nº 20 x 1 1/4 | G108: 1 | H108: Und. | I108: 1.09 | J108: 1.09
A109: Ruiz Ramirez Inés | B109: 2011-01-05 | C109: ENERO | D109: 5 | E109: 020100847 | F109: Cubre calzado descartable (par) | G109: 16 | H109: Und. | I109: 0.47 | J109: 7.52
A110: Ruiz Ramirez Inés | B110: 2011-01-05 | C110: ENERO | D110: 5 | E110: 020100986 | F110: Equipo de extensión cateter venoso Nº 60 | G110: 1 | H110: Und. | I110: 0.67 | J110: 0.67
A111: Ruiz Ramirez Inés | B111: 2011-01-05 | C111: ENERO | D111: 5 | E111: 020100990 | F111: Equipo de microgotero con camara graduada | G111: 1 | H111: Und. | I111: 2.85 | J111: 2.85
A112: Ruiz Ramirez Inés | B112: 2011-01-05 | C112: ENERO | D112: 5 | E112: 020100998 | F112: Equipo de venoclisis | G112: 6 | H112: Und. | I112: 0.9 | J112: 5.4
A113: Ruiz Ramirez Inés | B113: 2011-01-05 | C113: ENERO | D113: 5 | E113: 020101079 | F113: Gorro para enfermera descartable | G113: 8 | H113: Und. | I113: 0.13 | J113: 1.04
A114: Ruiz Ramirez Inés | B114: 2011-01-05 | C114: ENERO | D114: 5 | E114: 020101084 | F114: Guante medico para simple uso Nº 7 | G114: 6 | H114: Und. | I114: 0.2 | J114: 1.2
A115: Ruiz Ramirez Inés | B115: 2011-01-05 | C115: ENERO | D115: 5 | E115: 020101085 | F115: Guante medico para simple uso Nº 7 1/2 | G115: 4 | H115: Und. | I115: 0.2 | J115: 0.8
A116: Ruiz Ramirez Inés | B116: 2011-01-05 | C116: ENERO | D116: 5 | E116: 020101089 | F116: Guante quirúrgico esteril Nº 7 | G116: 4 | H116: Und. | I116: 0.71 | J116: 2.84
A117: Ruiz Ramirez Inés | B117: 2011-01-05 | C117: ENERO | D117: 5 | E117: 020101090 | F117: Guante quirúrgico esteril Nº 7 1/2 | G117: 4 | H117: Und. | I117: 0.71 | J117: 2.84
A118: Ruiz Ramirez Inés | B118: 2011-01-05 | C118: ENERO | D118: 5 | E118: 020101149 | F118: Hoja de bisturi Nº 15 | G118: 1 | H118: Und. | I118: 0.16 | J118: 0.16
A119: Ruiz Ramirez Inés | B119: 2011-02-19 | C119: FEBRERO | D119: 5 | E119: 020101258 | F119: Jeringa descartable 10 cc. Sin aguja | G119: 3 | H119: Und. | I119: 0.24 | J119: 0.72
A120: Ruiz Ramirez Inés | B120: 2011-02-19 | C120: FEBRERO | D120: 5 | E120: 020101267 | F120: Jeringa descartable 3 cc. Sin aguja | G120: 4 | H120: Und. | I120: 0.15 | J120: 0.6
A121: Ruiz Ramirez Inés | B121: 2011-02-19 | C121: FEBRERO | D121: 5 | E121: 020101269 | F121: Jeringa descartable 5 cc. Sin aguja | G121: 2 | H121: Und. | I121: 0.13 | J121: 0.26
A122: Ruiz Ramirez Inés | B122: 2011-02-19 | C122: FEBRERO | D122: 5 | E122: 020101273 | F122: Jeringa descartable para insulina 1 cc. | G122: 4 | H122: Und. | I122: 0.15 | J122: 0.6
A123: Ruiz Ramirez Inés | B123: 2011-02-19 | C123: FEBRERO | D123: 5 | E123: 020101301 | F123: Llave de doble vía descartable | G123: 2 | H123: Und. | I123: 0.77 | J123: 1.54
A124: Ruiz Ramirez Inés | B124: 2011-02-19 | C124: FEBRERO | D124: 5 | E124: 020101305 | F124: Llave de triple vía descartable | G124: 2 | H124: Und. | I124: 0.58 | J124: 1.16
A125: Ruiz Ramirez Inés | B125: 2011-02-19 | C125: FEBRERO | D125: 5 | E125: 020101318 | F125: Mandil esteril descartable | G125: 3 | H125: Und. | I125: 6 | J125: 18
A126: Ruiz Ramirez Inés | B126: 2011-02-19 | C126: FEBRERO | D126: 5 | E126: 020101621 | F126: Sonda de aspiración endotraqueal Nº 12 | G126: 1 | H126: Und. | I126: 0.89 | J126: 0.89
A127: Ruiz Ramirez Inés | B127: 2011-02-19 | C127: FEBRERO | D127: 5 | E127: 020102494 | F127: Gasa grande 10 x 10 | G127: 8 | H127: Und. | I127: 0.45 | J127: 3.6
A128: Ruiz Ramirez Inés | B128: 2011-02-19 | C128: FEBRERO | D128: 5 | E128: 020102536 | F128: Esparadrado hipoalergenico (plastificado) 2 x 10" yardas | G128: 6 | H128: mt | I128: 0.3494505495 | J128: 2.096703297
A129: Ruiz Ramirez Inés | B129: 2011-02-19 | C129: FEBRERO | D129: 5 | E129: 020102541 | F129: Esparadrado hipoalergenico de papel microporoso 2 " x 10 yardas | G129: 0.5 | H129: mt | I129: 0.3472527473 | J129: 0.1736263736
A130: Ruiz Ramirez Inés | B130: 2011-02-19 | C130: FEBRERO | D130: 5 | E130: 020102544 | F130: Esparadrado hipoalergenico (tela) 2 x 10" yardas | G130: 3 | H130: mt | I130: 0.6 | J130: 1.8
A131: Ruiz Ramirez Inés | B131: 2011-02-19 | C131: =IF(MONTH(B131)=1,"ENERO",IF(MONTH(B131)=2,"FEBRERO","MARZO")) -> FEBRERO | D131: 5 | E131: 020102604 | F131: Solución de Iodoro (Yodo povidona) 9 -12% | G131: 50 | H131: Und. | I131: 0.01 | J131: =+G131*I131 -> 0.5
A132: Ruiz Ramirez Inés | B132: 2011-02-19 | C132: FEBRERO | D132: 5 | E132: 020102841 | F132: Jabón antiseptico yodopovidona 7% a 10% espuma | G132: 200 | H132: CM3 | I132: 0.03 | J132: 6
A133: Ruiz Ramirez Inés | B133: 2011-02-19 | C133: FEBRERO | D133: 5 | E133: 020103065 | F133: Equipo de aspiración descartable x 1.5 lt. | G133: 1 | H133: Und. | I133: 15 | J133: 15
A134: Ruiz Ramirez Inés | B134: 2011-02-19 | C134: FEBRERO | D134: 5 | E134: 020103213 | F134: Alcohol con emoliente p. Antisepsia de mano | G134: 100 | H134: CM3 | I134: 0.009 | J134: 0.9
A135: Ruiz Ramirez Inés | B135: 2011-02-19 | C135: FEBRERO | D135: 5 | E135: 020201870 | F135: Tubo de jebe anodex Nº 1/4 x 3 3/2 | G135: 1 | H135: Und. | I135: 67.87 | J135: 67.87
A136: Ruiz Ramirez Inés | B136: 2011-02-19 | C136: FEBRERO | D136: 5 | E136: 030200297 | F136: Alcohol yodado | G136: 50 | H136: CM3 | I136: 0.01 | J136: 0.5
A137: Ruiz Ramirez Inés | B137: 2011-02-19 | C137: FEBRERO | D137: 5 | E137: 170050032 | F137: Papel toalla | G137: 24 | H137: Und. | I137: 0.0149 | J137: 0.3576
A138: Ruiz Ramirez Inés | B138: 2011-02-19 | C138: FEBRERO | D138: 5 | E138: 050010086 | F138: Papel bond | G138: 10 | H138: Und. | I138: 0.02 | J138: 0.2
A139: Quiñones López Víctor | B139: 2011-01-05 | C139: ENERO | D139: 2 | E139: 020100081 | F139: Aguja descartable Nº 18 X 1 1/2 | G139: 2 | H139: Und. | I139: 0.06 | J139: 0.12
A140: Quiñones López Víctor | B140: 2011-01-05 | C140: ENERO | D140: 2 | E140: 020100095 | F140: Aguja descartable Nº 22 x 1 1/2 | G140: 2 | H140: Und. | I140: 0.05 | J140: 0.1
A141: Quiñones López Víctor | B141: 2011-01-05 | C141: ENERO | D141: 2 | E141: 020100133 | F141: Algodón hidrofilo 500 gr. | G141: 2 | H141: TOR | I141: 0.0756 | J141: 0.1512
A142: Quiñones López Víctor | B142: 2011-01-05 | C142: ENERO | D142: 2 | E142: 020100242 | F142: Canula binasal adulto (bigote de gato) | G142: 1 | H142: Und. | I142: 1.85 | J142: 1.85
A143: Quiñones López Víctor | B143: 2011-01-05 | C143: ENERO | D143: 2 | E143: 020100445 | F143: Cateter endovenoso periferico Nº 20 x 1 1/4 | G143: 1 | H143: Und. | I143: 1.09 | J143: 1.09
A144: Quiñones López Víctor | B144: 2011-01-05 | C144: ENERO | D144: 2 | E144: 020100847 | F144: Cubre calzado descartable (par) | G144: 14 | H144: Und. | I144: 0.47 | J144: 6.58
A145: Quiñones López Víctor | B145: 2011-01-05 | C145: ENERO | D145: 2 | E145: 020100986 | F145: Equipo de extensión cateter venoso Nº 60 | G145: 1 | H145: Und. | I145: 0.67 | J145: 0.67
A146: Quiñones López Víctor | B146: 2011-01-05 | C146: ENERO | D146: 2 | E146: 020100998 | F146: Equipo de venoclisis | G146: 4 | H146: Und. | I146: 0.9 | J146: 3.6
A147: Quiñones López Víctor | B147: 2011-01-05 | C147: ENERO | D147: 2 | E147: 020101079 | F147: Gorro para enfermera descartable | G147: 8 | H147: Und. | I147: 0.13 | J147: 1.04
A148: Quiñones López Víctor | B148: 2011-01-05 | C148: ENERO | D148: 2 | E148: 020101084 | F148: Guante medico para simple uso Nº 7 | G148: 6 | H148: Und. | I148: 0.2 | J148: 1.2
A149: Quiñones López Víctor | B149: 2011-01-05 | C149: ENERO | D149: 2 | E149: 020101085 | F149: Guante medico para simple uso Nº 7 1/2 | G149: 4 | H149: Und. | I149: 0.2 | J149: 0.8
A150: Quiñones López Víctor | B150: 2011-01-05 | C150: ENERO | D150: 2 | E150: 020101089 | F150: Guante quirúrgico esteril Nº 7 | G150: 4 | H150: Und. | I150: 0.71 | J150: 2.84
A151: Quiñones López Víctor | B151: 2011-01-05 | C151: ENERO | D151: 2 | E151: 020101090 | F151: Guante quirúrgico esteril Nº 7 1/2 | G151: 4 | H151: Und. | I151: 0.71 | J151: 2.84
A152: Quiñones López Víctor | B152: 2011-01-05 | C152: ENERO | D152: 2 | E152: 020101258 | F152: Jeringa descartable 10 cc. Sin aguja | G152: 2 | H152: Und. | I152: 0.24 | J152: 0.48
A153: Quiñones López Víctor | B153: 2011-01-05 | C153: ENERO | D153: 2 | E153: 020101267 | F153: Jeringa descartable 3 cc. Sin aguja | G153: 2 | H153: Und. | I153: 0.15 | J153: 0.3
A154: Quiñones López Víctor | B154: 2011-01-05 | C154: ENERO | D154: 2 | E154: 020101269 | F154: Jeringa descartable 5 cc. Sin aguja | G154: 2 | H154: Und. | I154: 0.13 | J154: 0.26
A155: Quiñones López Víctor | B155: 2011-01-05 | C155: ENERO | D155: 2 | E155: 020101273 | F155: Jeringa descartable para insulina 1 cc. | G155: 2 | H155: Und. | I155: 0.15 | J155: 0.3
A156: Quiñones López Víctor | B156: 2011-01-05 | C156: ENERO | D156: 2 | E156: 020101301 | F156: Llave de doble vía descartable | G156: 2 | H156: Und. | I156: 0.77 | J156: 1.54
A157: Quiñones López Víctor | B157: 2011-02-19 | C157: FEBRERO | D157: 2 | E157: 020101318 | F157: Mandil esteril descartable | G157: 3 | H157: Und. | I157: 6 | J157: 18
A158: Quiñones López Víctor | B158: 2011-02-19 | C158: FEBRERO | D158: 2 | E158: 020101368 | F158: Mascarilla aseptica descartable | G158: 10 | H158: Und. | I158: 0.17 | J158: 1.7
A159: Quiñones López Víctor | B159: 2011-02-19 | C159: FEBRERO | D159: 2 | E159: 020101453 | F159: Pañal descartable | G159: 1 | H159: Und. | I159: 1.93 | J159: 1.93
A160: Quiñones López Víctor | B160: 2011-02-19 | C160: FEBRERO | D160: 2 | E160: 020102494 | F160: Gasa grande 10 x 10 | G160: 4 | H160: Und. | I160: 0.45 | J160: 1.8
A161: Quiñones López Víctor | B161: 2011-02-19 | C161: FEBRERO | D161: 2 | E161: 020102536 | F161: Esparadrado hipoalergenico (plastificado) 2 x 10" yardas | G161: 6 | H161: mt | I161: 0.3494505495 | J161: 2.096703297
A162: Quiñones López Víctor | B162: 2011-02-19 | C162: FEBRERO | D162: 2 | E162: 020102541 | F162: Esparadrado hipoalergenico de papel microporoso 2 " x 10 yardas | G162: 0.5 | H162: mt | I162: 0.3472527473 | J162: 0.1736263736
A163: Quiñones López Víctor | B163: 2011-02-19 | C163: FEBRERO | D163: 2 | E163: 020102544 | F163: Esparadrado hipoalergenico (tela) 2 x 10" yardas | G163: 3 | H163: mt | I163: 0.6 | J163: 1.8
A164: Quiñones López Víctor | B164: 2011-02-19 | C164: FEBRERO | D164: 2 | E164: 020102604 | F164: Solución de Iodoro (Yodo povidona) 9 -12% | G164: 50 | H164: Und. | I164: 0.01 | J164: 0.5
A165: Quiñones López Víctor | B165: 2011-02-19 | C165: FEBRERO | D165: 2 | E165: 020102811 | F165: Detergente proteolitico enzimatico | G165: 220 | H165: CM3 | I165: 0.03 | J165: 6.6
A166: Quiñones López Víctor | B166: 2011-02-19 | C166: FEBRERO | D166: 2 | E166: 020102841 | F166: Jabón antiseptico yodopovidona 7% a 10% espuma | G166: 100 | H166: CM3 | I166: 0.03 | J166: 3
A167: Quiñones López Víctor | B167: 2011-02-19 | C167: FEBRERO | D167: 2 | E167: 020103213 | F167: Alcohol con emoliente p. Antisepsia de mano | G167: 60 | H167: CM3 | I167: 0.009 | J167: 0.54
A168: Quiñones López Víctor | B168: 2011-02-19 | C168: FEBRERO | D168: 2 | E168: 030200297 | F168: Alcohol yodado | G168: 50 | H168: CM3 | I168: 0.01 | J168: 0.5
A169: Quiñones López Víctor | B169: 2011-02-19 | C169: FEBRERO | D169: 2 | E169: 170050032 | F169: Papel toalla | G169: 16 | H169: Und. | I169: 0.0149 | J169: 0.2384
A170: Quiñones López Víctor | B170: 2011-02-19 | C170: FEBRERO | D170: 2 | E170: 050010086 | F170: Papel bond | G170: 10 | H170: Und. | I170: 0.02 | J170: 0.2
A171: Tito Berrocal Miguel | B171: 2011-01-06 | C171: ENERO | D171: 2 | E171: 020100081 | F171: Aguja descartable Nº 18 X 1 1/2 | G171: 2 | H171: Und. | I171: 0.06 | J171: 0.12
A172: Tito Berrocal Miguel | B172: 2011-01-06 | C172: ENERO | D172: 2 | E172: 020100095 | F172: Aguja descartable Nº 22 x 1 1/2 | G172: 2 | H172: Und. | I172: 0.05 | J172: 0.1
A173: Tito Berrocal Miguel | B173: 2011-01-06 | C173: ENERO | D173: 2 | E173: 020100133 | F173: Algodón hidrofilo 500 gr. | G173: 2 | H173: TOR | I173: 0.0756 | J173: 0.1512
A174: Tito Berrocal Miguel | B174: 2011-01-06 | C174: ENERO | D174: 2 | E174: 020100242 | F174: Canula binasal adulto (bigote de gato) | G174: 1 | H174: Und. | I174: 1.85 | J174: 1.85
A175: Tito Berrocal Miguel | B175: 2011-01-06 | C175: ENERO | D175: 2 | E175: 020100847 | F175: Cubre calzado descartable (par) | G175: 14 | H175: Und. | I175: 0.47 | J175: 6.58
A176: Tito Berrocal Miguel | B176: 2011-01-06 | C176: ENERO | D176: 2 | E176: 020100986 | F176: Equipo de extensión cateter venoso Nº 60 | G176: 4 | H176: Und. | I176: 0.67 | J176: 2.68
A177: Tito Berrocal Miguel | B177: 2011-01-06 | C177: ENERO | D177: 2 | E177: 020100998 | F177: Equipo de venoclisis | G177: 8 | H177: Und. | I177: 0.9 | J177: 7.2
A178: Tito Berrocal Miguel | B178: 2011-01-06 | C178: ENERO | D178: 2 | E178: 020101084 | F178: Guante medico para simple uso Nº 7 | G178: 6 | H178: Und. | I178: 0.2 | J178: 1.2
A179: Tito Berrocal Miguel | B179: 2011-01-06 | C179: ENERO | D179: 2 | E179: 020101085 | F179: Guante medico para simple uso Nº 7 1/2 | G179: 4 | H179: Und. | I179: 0.2 | J179: 0.8
A180: Tito Berrocal Miguel | B180: 2011-01-06 | C180: ENERO | D180: 2 | E180: 020101089 | F180: Guante quirúrgico esteril Nº 7 | G180: 4 | H180: Und. | I180: 0.71 | J180: 2.84
A181: Tito Berrocal Miguel | B181: 2011-01-06 | C181: ENERO | D181: 2 | E181: 020101090 | F181: Guante quirúrgico esteril Nº 7 1/2 | G181: 4 | H181: Und. | I181: 0.71 | J181: 2.84
A182: Tito Berrocal Miguel | B182: 2011-01-06 | C182: ENERO | D182: 2 | E182: 020101258 | F182: Jeringa descartable 10 cc. Sin aguja | G182: 2 | H182: Und. | I182: 0.24 | J182: 0.48
A183: Tito Berrocal Miguel | B183: 2011-02-06 | C183: FEBRERO | D183: 2 | E183: 020101267 | F183: Jeringa descartable 3 cc. Sin aguja | G183: 2 | H183: Und. | I183: 0.15 | J183: 0.3
A184: Tito Berrocal Miguel | B184: 2011-02-06 | C184: FEBRERO | D184: 2 | E184: 020101269 | F184: Jeringa descartable 5 cc. Sin aguja | G184: 2 | H184: Und. | I184: 0.13 | J184: 0.26
A185: Tito Berrocal Miguel | B185: 2011-02-06 | C185: FEBRERO | D185: 2 | E185: 020101273 | F185: Jeringa descartable para insulina 1 cc. | G185: 2 | H185: Und. | I185: 0.15 | J185: 0.3
A186: Tito Berrocal Miguel | B186: 2011-02-06 | C186: FEBRERO | D186: 2 | E186: 020101301 | F186: Llave de doble vía descartable | G186: 2 | H186: Und. | I186: 0.77 | J186: 1.54
A187: Tito Berrocal Miguel | B187: 2011-02-06 | C187: FEBRERO | D187: 2 | E187: 020101318 | F187: Mandil esteril descartable | G187: 3 | H187: Und. | I187: 6 | J187: 18
A188: Tito Berrocal Miguel | B188: 2011-02-06 | C188: FEBRERO | D188: 2 | E188: 020101368 | F188: Mascarilla aseptica descartable | G188: 10 | H188: Und. | I188: 0.17 | J188: 1.7
A189: Tito Berrocal Miguel | B189: 2011-02-06 | C189: FEBRERO | D189: 2 | E189: 020101453 | F189: Pañal descartable | G189: 1 | H189: Und. | I189: 1.93 | J189: 1.93
A190: Tito Berrocal Miguel | B190: 2011-02-06 | C190: FEBRERO | D190: 2 | E190: 020102494 | F190: Gasa grande 10 x 10 | G190: 4 | H190: Und. | I190: 0.45 | J190: 1.8
A191: Tito Berrocal Miguel | B191: 2011-02-06 | C191: FEBRERO | D191: 2 | E191: 020102536 | F191: Esparadrado hipoalergenico (plastificado) 2 x 10" yardas | G191: 6 | H191: mt | I191: 0.3494505495 | J191: 2.096703297
A192: Tito Berrocal Miguel | B192: 2011-02-06 | C192: FEBRERO | D192: 2 | E192: 020102541 | F192: Esparadrado hipoalergenico de papel microporoso 2 " x 10 yardas | G192: 0.5 | H192: mt | I192: 0.3472527473 | J192: 0.1736263736
A193: Tito Berrocal Miguel | B193: 2011-02-06 | C193: FEBRERO | D193: 2 | E193: 020102544 | F193: Esparadrado hipoalergenico (tela) 2 x 10" yardas | G193: 3 | H193: mt | I193: 0.6 | J193: 1.8
A194: Tito Berrocal Miguel | B194: 2011-02-06 | C194: FEBRERO | D194: 2 | E194: 020102604 | F194: Solución de Iodoro (Yodo povidona) 9 -12% | G194: 50 | H194: Und. | I194: 0.01 | J194: 0.5
A195: Tito Berrocal Miguel | B195: 2011-02-06 | C195: =IF(MONTH(B195)=1,"ENERO",IF(MONTH(B195)=2,"FEBRERO","MARZO")) -> FEBRERO | D195: 2 | E195: 020102811 | F195: Detergente proteolitico enzimatico | G195: 220 | H195: CM3 | I195: 0.03 | J195: =+G195*I195 -> 6.6
A196: Tito Berrocal Miguel | B196: 2011-02-06 | C196: FEBRERO | D196: 2 | E196: 020102841 | F196: Jabón antiseptico yodopovidona 7% a 10% espuma | G196: 150 | H196: CM3 | I196: 0.03 | J196: 4.5
A197: Tito Berrocal Miguel | B197: 2011-02-06 | C197: FEBRERO | D197: 2 | E197: 020103213 | F197: Alcohol con emoliente p. Antisepsia de mano | G197: 75 | H197: CM3 | I197: 0.009 | J197: 0.675
A198: Tito Berrocal Miguel | B198: 2011-02-06 | C198: FEBRERO | D198: 2 | E198: 030200297 | F198: Alcohol yodado | G198: 50 | H198: CM3 | I198: 0.01 | J198: 0.5
A199: Tito Berrocal Miguel | B199: 2011-02-06 | C199: FEBRERO | D199: 2 | E199: 170050032 | F199: Papel toalla | G199: 20 | H199: Und. | I199: 0.0149 | J199: 0.298
A200: Tito Berrocal Miguel | B200: 2011-02-06 | C200: FEBRERO | D200: 2 | E200: 050010086 | F200: Papel bond | G200: 10 | H200: Und. | I200: 0.02 | J200: 0.2
... 4179 more rows

Sheet Hoja2
B3: Mes | C3: Paciente | D3: Materiales médicos | E3: Cantidad_Materiales | F3: Costo_Total
B4: ENERO | E4: 15465 | F4: 276370.309
C5: Alarcón Manchego Angel | E5: 740.5 | F5: 7160.37275
D6: ACEITE YODADO DE AMAPOLA (Iodo ultrafluído) 35.2 % a 39 % de iodo en combinación | E6: 3 | F6: 369
D7: Agua destilada 1L | E7: 1 | F7: 0.93
D8: Aguja descartable Nº 18 X 1 1/2 | E8: 8 | F8: 0.48
D9: Aguja descartable Nº 22 x 1 1/2 | E9: 4 | F9: 0.2
D10: Aguja descartable Nº 25 x 1 | E10: 2 | F10: 0.12
D11: Alcohol con emoliente p. Antisepsia de mano | E11: 75 | F11: 0.675
D12: Alcohol yodado | E12: 50 | F12: 0.5
D13: Algodón hidrofilo 500 gr. | E13: 4 | F13: 0.3024
D14: Bolsa colectora de Orina adulto descartable | E14: 2 | F14: 6.26
D15: Campo esteril 90 x 90 cm. | E15: 1 | F15: 2.66
D16: Canula binasal pediátrico (bigote de gato) | E16: 2 | F16: 3.6
D17: Catéter cerebral de alto flujo con control N.5.5 curva hn4 | E17: 2 | F17: 258
D18: Catéter guía mpd 6 Fr. | E18: 1 | F18: 970
D19: Cloruro de sodio 0.9 % x 1 L | E19: 7 | F19: 8.61
D20: Colector urinario masculino adulto talla L | E20: 2 | F20: 7.02
D21: Cubre calzado descartable (par) | E21: 18 | F21: 8.46
D22: Detergente proteolitico enzimatico | E22: 220 | F22: 6.6
D23: Dextrosa al 5% | E23: 1 | F23: 1.51
D24: Enbucrilato 0.5 g/0.5 ml | E24: 3 | F24: 247.5
D25: Equipo de extensión cateter venoso Nº 60 | E25: 2 | F25: 1.34
D26: Equipo de microgotero con camara graduada | E26: 2 | F26: 5.7
D27: Equipo de venoclisis | E27: 8 | F27: 7.2
D28: Esparadrado hipoalergenico (plastificado) 2 x 10" yardas | E28: 6 | F28: 2.096703297
D29: Esparadrado hipoalergenico (tela) 3x 10" yardas | E29: 3 | F29: 3.296703297
D30: Esparadrado hipoalergenico de papel microporoso 2 " x 10 yardas | E30: 0.5 | F30: 0.1736263736
D31: Gasa grande 10 x 10 | E31: 4 | F31: 1.8
D32: Gorro para enfermera descartable | E32: 9 | F32: 1.17
D33: Guante medico para simple uso Nº 7 | E33: 12 | F33: 2.4
D34: Guante medico para simple uso Nº 7 1/2 | E34: 8 | F34: 1.6
D35: Guante quirúrgico esteril Nº 7 | E35: 4 | F35: 2.84
D36: Guante quirúrgico esteril Nº 8 | E36: 2 | F36: 1.26
D37: Guía metálica 2.60 - 35 | E37: 1 | F37: 60
D38: Guía metálica hidrofílica curva 0.035 x 145 cm de long. | E38: 1 | F38: 185
D39: Guía teflón recta N.35 curva 0 | E39: 1 | F39: 63
D40: Guía teflón recta N.35 curva 3 | E40: 1 | F40: 69
D41: Infusor de sangre | E41: 3 | F41: 5.5
D42: Introductor catéter set con válvula check flow N.6 | E42: 2 | F42: 86
D43: Jabón antiseptico yodopovidona 7% a 10% espuma | E43: 150 | F43: 4.5
D44: Jeringa descartable 10 cc. Sin aguja | E44: 2 | F44: 0.48
D45: Jeringa descartable 3 cc. Sin aguja | E45: 2 | F45: 0.3
D46: Jeringa descartable 5 cc. Sin aguja | E46: 2 | F46: 0.26
D47: Jeringa descartable para insulina 1 cc. | E47: 2 | F47: 0.3
D48: Llave de triple vía descartable | E48: 2 | F48: 1.16
D49: LOBITRIDOL 350 mg (iodo/ml x 100 ml) | E49: 4 | F49: 589.6
D50: Mandil esteril descartable | E50: 3 | F50: 18
D51: Mascarilla aseptica descartable | E51: 10 | F51: 1.7
D52: Microcatéter 1.2 Fr. | E52: 1 | F52: 2160
D53: Microguía hidrofílica 0.007" (0.18 mm) | E53: 1 | F53: 1370
D54: Pañal descartable | E54: 1 | F54: 1.93
D55: Papel toalla | E55: 20 | F55: 0.298
D56: Película radiográfica de doble emulsión 8" x 10" | E56: 8 | F56: 31.36
D57: Pinza de campo Backhaus, 90 mm | E57: 2 | F57: 0.1803166667
D58: Solución de Iodoro (Yodo povidona) 9 -12% | E58: 50 | F58: 0.5
D59: Tubo conector de alta presión de polietileno trenzado 8.8 Fr. x 120 cm de longitud | E59: 4 | F59: 288
D60: Válvula rotativa hemostática | E60: 1 | F60: 300
C61: Beltrán Santillán Mauricio | E61: 463 | F61: 16247.20457
D62: Agua destilada 1L | E62: 1 | F62: 0.93
D63: Aguja descartable Nº 18 X 1 1/2 | E63: 4 | F63: 0.24
D64: Aguja descartable Nº 22 x 1 1/2 | E64: 2 | F64: 0.1
D65: Alcohol con emoliente p. Antisepsia de mano | E65: 75 | F65: 0.675
D66: Alcohol yodado | E66: 50 | F66: 0.5
D67: Algodón hidrofilo 500 gr. | E67: 2 | F67: 0.1512
D68: Cateter endovenoso periferico Nº 18 x 1 1/2 | E68: 1 | F68: 1.08
D69: Catéter guía para stens F8 diám. int.0.086 config. punta fl 5 (Marathon) | E69: 2 | F69: 454
D70: Catéter head hunter de alto flujo con control N.5 | E70: 1 | F70: 105
D71: Cloruro de sodio 0.9 % x 1 L | E71: 5 | F71: 6.15
D72: Equipo de extensión cateter venoso Nº 60 | E72: 1 | F72: 0.67
D73: Equipo de microgotero con camara graduada | E73: 1 | F73: 2.85
D74: Equipo de venoclisis | E74: 6 | F74: 5.4
D75: Esparadrado hipoalergenico (plastificado) 2 x 10" yardas | E75: 6 | F75: 2.096703297
D76: Esparadrado hipoalergenico (tela) 3x 10" yardas | E76: 3 | F76: 3.296703297
D77: Esparadrado hipoalergenico de papel microporoso 2 " x 10 yardas | E77: 0.5 | F77: 0.1736263736
D78: Gasa grande 10 x 10 | E78: 8 | F78: 3.6
D79: Guante medico para simple uso Nº 7 | E79: 6 | F79: 1.2
D80: Guante medico para simple uso Nº 7 1/2 | E80: 4 | F80: 0.8
D81: Guante quirúrgico esteril Nº 6 1/2 | E81: 4 | F81: 2.44
D82: Guante quirúrgico esteril Nº 7 1/2 | E82: 4 | F82: 2.84
D83: Guía teflón recta N.35 curva 0 | E83: 1 | F83: 63
D84: Hoja de bisturi Nº 15 | E84: 1 | F84: 0.16
D85: Infusor de sangre | E85: 4 | F85: 7.333333333
D86: Introductor catéter set con válvula check flow N.6 | E86: 1 | F86: 43
D87: Jabón antiseptico yodopovidona 7% a 10% espuma | E87: 150 | F87: 4.5
D88: Jeringa descartable 10 cc. Sin aguja | E88: 3 | F88: 0.72
D89: Jeringa descartable 3 cc. Sin aguja | E89: 2 | F89: 0.3
D90: Jeringa descartable 5 cc. Sin aguja | E90: 2 | F90: 0.26
D91: Jeringa descartable para insulina 1 cc. | E91: 4 | F91: 0.6
D92: Llave de doble vía descartable | E92: 2 | F92: 1.54
D93: LOBITRIDOL 350 mg (iodo/ml x 100 ml) | E93: 2 | F93: 294.8
D94: Mandil esteril descartable | E94: 3 | F94: 18
D95: Papel toalla | E95: 20 | F95: 0.298
D96: Película radiográfica de doble emulsión 8" x 10" | E96: 22 | F96: 86.24
D97: Sistema para sustancia embolizante (ONYX) | E97: 1.5 | F97: 14175
D98: Solución de Iodoro (Yodo povidona) 9 -12% | E98: 50 | F98: 0.5
D99: Sonda de aspiración endotraqueal Nº 12 | E99: 1 | F99: 0.89
D100: Tubo conector de alta presión de polietileno trenzado 8.8 Fr. x 120 cm de longitud | E100: 4 | F100: 288
D101: Tubo de jebe anodex Nº 1/4 x 3 3/2 | E101: 1 | F101: 67.87
D102: Válvula rotativa hemostática | E102: 2 | F102: 600
C103: Berneo Cruz Maria | E103: 111 | F103: 15069.8812
D104: ACEITE YODADO DE AMAPOLA (Iodo ultrafluído) 35.2 % a 39 % de iodo en combinación | E104: 1 | F104: 123
D105: Aguja descartable Nº 18 X 1 1/2 | E105: 6 | F105: 0.36
D106: Aguja descartable Nº 22 x 1 1/2 | E106: 2 | F106: 0.1
D107: Algodón hidrofilo 500 gr. | E107: 2 | F107: 0.1512
D108: Canula binasal adulto (bigote de gato) | E108: 1 | F108: 1.85
D109: Catéter cerebral de alto flujo con control N.5.5 curva hn4 | E109: 1 | F109: 129
D110: Catéter guía mpd 6 Fr. | E110: 1 | F110: 970
D111: Cloruro de sodio 0.9 % x 1 L | E111: 6 | F111: 7.38
D112: Cubre calzado descartable (par) | E112: 14 | F112: 6.58
D113: Dextrosa al 5% | E113: 1 | F113: 1.51
D114: Enbucrilato 0.5 g/0.5 ml | E114: 2 | F114: 165
D115: Equipo de extensión cateter venoso Nº 60 | E115: 1 | F115: 0.67
D116: Equipo de venoclisis | E116: 4 | F116: 3.6
D117: Gorro para enfermera descartable | E117: 8 | F117: 1.04
D118: Guante medico para simple uso Nº 7 | E118: 10 | F118: 2
D119: Guante medico para simple uso Nº 7 1/2 | E119: 4 | F119: 0.8
D120: Guante medico para simple uso Nº 8 | E120: 4 | F120: 0.84
D121: Guante quirúrgico esteril Nº 6 1/2 | E121: 2 | F121: 1.22
D122: Guía metálica hidrofílica curva 0.035 x 145 cm de long. | E122: 1 | F122: 185
D123: Guía metálica hidrofílica recta 0.035 x 2.60 cm de long. | E123: 1 | F123: 185
D124: Guía teflón recta N.35 curva 0 | E124: 1 | F124: 63
D125: Infusor de sangre | E125: 3 | F125: 5.5
D126: Introductor catéter set con válvula check flow N.6 | E126: 1 | F126: 43
D127: LOBITRIDOL 350 mg (iodo/ml x 100 ml) | E127: 2 | F127: 294.8
D128: Microcatéter 1.2 Fr. | E128: 1 | F128: 2160
D129: Microcatéter balt magic 1.5 cmp | E129: 1 | F129: 2200
D130: Microguía tapered 16 | E130: 8 | F130: 8000
D131: Película radiográfica de doble emulsión 8" x 10" | E131: 19 | F131: 74.48
D132: Tubo conector de alta presión de polietileno trenzado 8.8 Fr. x 120 cm de longitud | E132: 2 | F132: 144
D133: Válvula rotativa hemostática | E133: 1 | F133: 300
C134: Bringas Cabello María | E134: 118 | F134: 11820.88485
D135: Agua destilada 1L | E135: 1 | F135: 0.93
D136: Aguja descartable Nº 18 X 1 1/2 | E136: 2 | F136: 0.12
D137: Aguja descartable Nº 22 x 1 1/2 | E137: 2 | F137: 0.1
D138: Algodón hidrofilo 500 gr. | E138: 2 | F138: 0.1512
D139: Canula binasal adulto (bigote de gato) | E139: 1 | F139: 1.85
D140: Catéter cerebral de alto flujo con control N.5.5 curva hn4 | E140: 2 | F140: 258
D141: Catéter guía mpd 6 Fr. | E141: 2 | F141: 1940
D142: Cloruro de sodio 0.9 % x 1 L | E142: 5 | F142: 6.15
D143: Coils cerebral de desprendimiento instantáneo de bola abrazadera (BOSTON) | E143: 2 | F143: 5500
D144: Cubre calzado descartable (par) | E144: 14 | F144: 6.58
D145: Equipo de extensión cateter venoso Nº 60 | E145: 1 | F145: 0.67
D146: Equipo de venoclisis | E146: 6 | F146: 5.4
D147: Gasa grande 10 x 10 | E147: 3 | F147: 1.35
D148: Gorro para enfermera descartable | E148: 8 | F148: 1.04
D149: Guante medico para simple uso Nº 7 | E149: 6 | F149: 1.2
D150: Guante medico para simple uso Nº 7 1/2 | E150: 4 | F150: 0.8
D151: Guante quirúrgico esteril Nº 6 1/2 | E151: 2 | F151: 1.22
D152: Guante quirúrgico esteril Nº 7 | E152: 2 | F152: 1.42
D153: Guante quirúrgico esteril Nº 7 1/2 | E153: 2 | F153: 1.42
D154: Guía metálica hidrofílica curva 0.035 x 145 cm de long. | E154: 1 | F154: 185
D155: Guía metálica hidrofílica recta 0.035 x 2.60 cm de long. | E155: 1 | F155: 185
D156: Hoja de bisturi Nº 15 | E156: 1 | F156: 0.16
D157: Infusor de sangre | E157: 4 | F157: 7.333333333
D158: Introductor catéter set con válvula check flow N.6 | E158: 1 | F158: 43
D159: Jeringa descartable 10 cc. Sin aguja | E159: 2 | F159: 0.48
D160: Jeringa descartable 3 cc. Sin aguja | E160: 4 | F160: 0.6
D161: Jeringa descartable para insulina 1 cc. | E161: 2 | F161: 0.3
D162: Llave de doble vía descartable | E162: 2 | F162: 1.54
D163: Llave de triple vía descartable | E163: 2 | F163: 1.16
D164: LOBITRIDOL 350 mg (iodo/ml x 100 ml) | E164: 2 | F164: 294.8
D165: Micro guía 14 | E165: 1 | F165: 900
D166: Microcateter Fastracker 14, 150 cm de largo | E166: 1 | F166: 1400
D167: nimodipino endovenoso | E167: 5 | F167: 130.05
D168: Película radiográfica de doble emulsión 8" x 10" | E168: 14 | F168: 54.88
D169: Pinza de campo Backhaus, 90 mm | E169: 2 | F169: 0.1803166667
D170: Tubo conector de alta presión de polietileno trenzado 8.8 Fr. x 120 cm de longitud | E170: 4 | F170: 288
D171: Válvula rotativa hemostática | E171: 2 | F171: 600
C172: Carmelo Medrano Eulogia | E172: 612.5 | F172: 22365.06087
D173: Agua destilada 1L | E173: 1 | F173: 0.93
D174: Aguja descartable Nº 18 X 1 1/2 | E174: 2 | F174: 0.12
D175: Aguja descartable Nº 22 x 1 1/2 | E175: 2 | F175: 0.1
D176: Alcohol con emoliente p. Antisepsia de mano | E176: 105 | F176: 0.945
D177: Alcohol yodado | E177: 50 | F177: 0.5
D178: Algodón hidrofilo 500 gr. | E178: 2 | F178: 0.1512
D179: Bolsa colectora de Orina adulto descartable | E179: 1 | F179: 3.13
D180: Catéter cobra 5.0 fr-35-100-c3 | E180: 1 | F180: 132
D181: Cateter endovenoso periferico Nº 18 x 1 1/2 | E181: 2 | F181: 2.16
D182: Catéter guía mpd 6 Fr. | E182: 1 | F182: 970
D183: Cloruro de sodio 0.9 % x 1 L | E183: 6 | F183: 7.38
D184: Cobertor para equipo de calentamiento corporal 152 cm x 91 cm | E184: 1 | F184: 78.95
D185: Coils cerebral de desprendimiento eléctrico (MICRUS) | E185: 1 | F185: 3129
D186: Coils cerebral de desprendimiento termo mecánico (MICROINVENTION) | E186: 3 | F186: 9300
D187: Equipo de extensión cateter venoso Nº 60 | E187: 1 | F187: 0.67
D188: Equipo de venoclisis | E188: 6 | F188: 5.4
D189: Esparadrado hipoalergenico (plastificado) 2 x 10" yardas | E189: 6 | F189: 2.096703297
D190: Esparadrado hipoalergenico (tela) 2 x 10" yardas | E190: 3 | F190: 1.8
D191: Esparadrado hipoalergenico de papel microporoso 2 " x 10 yardas | E191: 0.5 | F191: 0.1736263736
D192: Gasa grande 10 x 10 | E192: 10 | F192: 4.5
D193: Guante medico para simple uso Nº 7 | E193: 6 | F193: 1.2
D194: Guante medico para simple uso Nº 7 1/2 | E194: 4 | F194: 0.8
D195: Guante quirúrgico esteril Nº 7 | E195: 4 | F195: 2.84
D196: Guante quirúrgico esteril Nº 7 1/2 | E196: 6 | F196: 4.26
D197: Guía metálica hidrofílica curva 0.035 x 145 cm de long. | E197: 1 | F197: 185
D198: Guía metálica hidrofílica recta 0.035 x 2.60 cm de long. | E198: 1 | F198: 185
D199: Hoja de bisturi Nº 11 | E199: 1 | F199: 0.16
D200: Infusor de sangre | E200: 5 | F200: 9.166666667
D201: Introductor catéter set con válvula check flow N.6 | E201: 1 | F201: 43
D202: Jabón antiseptico yodopovidona 7% a 10% espuma | E202: 250 | F202: 7.5
... 4087 more rows
